fUSD/lending_fUSD_20260109
["ID","MTS","AMOUNT","RATE_DAILY","PERIOD"]
[401098613,1767927040336,-491.36,0.00015687,2]
[401098615,1767927040347,-1000.0,0.00015918,2]
[401098617,1767927040357,-3841.5,0.00015918,2]
[401098619,1767927040366,-150.0,0.00016019,2]
[401098621,1767927040376,-433.0,0.00016039,2]
[401098623,1767927040386,-150.0,0.00016074,2]
[401098625,1767927040395,-150.0,0.00016129,2]
[401098627,1767927040405,-150.0,0.00016183,2]
[401098629,1767927040415,-500.0,0.00016199,2]
[401098631,1767927040425,-150.0,0.00016238,2]
[401098633,1767927040434,-1000.0,0.0001626,2]
[401098635,1767927040443,-971.36,0.0001626,2]
[401098637,1767927040453,-250.0,0.00016293,2]
[401098639,1767927040463,-368.65,0.00016293,2]
[401098641,1767927040473,-819.324,0.00016328,2]
[401098643,1767927040483,-210.60544519,0.00016337,2]
[401098645,1767927040495,-336.94221396,0.00016337,2]
[401098647,1767927040504,-500.0,0.00016337,2]
[401098649,1767927040519,-500.0,0.00016337,2]
[401098651,1767927040529,-167.05615839,0.00016337,2]
[401098653,1767927040539,-508.33302413,0.00016338,2]
[401098655,1767927040548,-626.31310833,0.00016338,2]
[401098657,1767927040558,-150.0,0.00016338,2]
[401098660,1767927040569,-1816.90288549,0.00016338,2]
[401098662,1767927040578,-1000000.0,0.00016338,2]
[401098664,1767927040588,-527.5,0.00016438,2]
[401098666,1767927040602,-483.29277832,0.00016438,2]
[401098668,1767927040611,-23827.76,0.00016438,2]
[401098670,1767927040622,-226.56,0.00016438,2]
[401098672,1767927040631,-1000.0,0.00016447,2]
[401098674,1767927040641,-150.0,0.00016484,2]
[401098676,1767927040650,-166.66,0.00016492,2]
[401098678,1767927040661,-917.1,0.00016503,2]
[401098680,1767927040671,-626.31310827,0.00016512,2]
[401098682,1767927040680,-1816.90288548,0.00016512,2]
[401098684,1767927040689,-1000.0,0.00016515,2]
[401098686,1767927040699,-2351.0,0.00016573,2]
[401098687,1767927040709,-3841.5,0.00016676,2]
[401098690,1767927040718,-626.31310827,0.00016685,2]
[401098692,1767927040728,-1816.90288548,0.00016685,2]
[401098694,1767927040738,-527.5,0.00016712,2]
[401098695,1767927040747,-158.57,0.00016712,2]
[401098698,1767927040756,-482.72,0.00016772,2]
[401098699,1767927040766,-482.72,0.00016772,2]
[401098702,1767927040776,-482.72,0.00016772,2]
[401098704,1767927040785,-166.66,0.00016839,2]
[401098706,1767927040795,-626.31310827,0.00016859,2]
[401098708,1767927040804,-1816.90288548,0.00016859,2]
[401098710,1767927040814,-162.0,0.000169,2]
[401098712,1767927040825,-162.0,0.000169,2]
[401098714,1767927040834,-157.78803464,0.00016951,2]
[401098716,1767927040846,-500.0,0.00016986,2]
[401098718,1767927040856,-500.0,0.00016986,2]
[401098720,1767927040865,-500.0,0.00016986,2]
[401098722,1767927040875,-500.0,0.00016986,2]
[401098724,1767927040885,-500.0,0.00016986,2]
[401098727,1767927040903,-602.31786917,0.00016986,2]
[401098729,1767927040914,-500.0,0.00016986,2]
[401098731,1767927040924,-511.98797605,0.00016986,2]
[401098733,1767927040933,-527.5,0.00016986,2]
[401098735,1767927040943,-776.2472,0.00017,2]
[401098737,1767927040952,-626.31310827,0.00017032,2]
[401098739,1767927040961,-500.0,0.00017098,2]
[401098741,1767927040971,-322.6107,0.00017099,2]
[401098743,1767927040981,-553.64373807,0.00017099,2]
[401098745,1767927040991,-2000.0,0.00017099,2]
[401098747,1767927041000,-817.14196005,0.00017099,2]
[401098749,1767927041010,-1500.0,0.00017099,2]
[401098751,1767927041019,-620.0,0.00017099,2]
[401098753,1767927041029,-500.0,0.00017099,2]
[401098755,1767927041039,-500.0,0.00017099,2]
[401098757,1767927041048,-481.23946277,0.00017099,2]
[401098759,1767927041058,-578.20924308,0.00017099,2]
[401098762,1767927041068,-151.0,0.00017099,2]
[401098764,1767927041078,-1000.0,0.00017112,2]
[401098766,1767927041087,-166.66,0.00017186,2]
[401098768,1767927041097,-626.31310827,0.00017206,2]
[401098770,1767927041107,-459.82586262,0.00017214,2]
[401098772,1767927041117,-527.5,0.0001726,2]
[401098774,1767927041127,-736.0,0.00017354,2]
[401098776,1767927041137,-626.31310827,0.00017379,2]
[401098778,1767927041147,-1000.0,0.000174,2]
[401098780,1767927041156,-3841.5,0.00017434,2]
[401098782,1767927041166,-2000.0,0.000175,2]
[401098784,1767927041176,-166.66,0.00017534,2]
[401098786,1767927041186,-527.5,0.00017534,2]
[401098788,1767927041196,-626.31310827,0.00017553,2]
[401098790,1767927041205,-1000.0,0.000176,2]
[401098792,1767927041215,-1741.98050018,0.0001764,2]
[401098794,1767927041224,-574.12855637,0.00017647,2]
[401098796,1767927041234,-151.0,0.00017647,2]
[401098798,1767927041244,-162.0,0.000177,2]
[401098800,1767927041254,-162.0,0.000177,2]
[401098802,1767927041262,-1000.0,0.00017709,2]
[401098804,1767927041272,-626.31310827,0.00017726,2]
[401098806,1767927041281,-299.99,0.00017728,4]
[401098808,1767927041291,-535.58,0.00017728,2]
[401098810,1767927041300,-8871.42,0.00017728,2]
[401098812,1767927041310,-9999.99,0.00017728,2]
[401098814,1767927041319,-150.99,0.00017728,2]
[401098816,1767927041328,-482.72,0.00017731,2]
[401098818,1767927041338,-1029.41,0.00017731,2]
[401098820,1767927041350,-1000.0,0.000178,2]
[401098822,1767927041360,-2503.20020228,0.000178,2]
[401098825,1767927041369,-527.5,0.00017808,2]
[401098826,1767927041379,-2000.0,0.00017856,2]
[401098829,1767927041388,-200.0,0.00017856,2]
[401098831,1767927041401,-166.66,0.00017881,2]
[401098833,1767927041411,-206.86777706,0.0001789,2]
[401098835,1767927041420,-215.78112868,0.00017899,2]
[401098837,1767927041430,-229.48113125,0.000179,2]
[401098839,1767927041439,-33584.3474,0.000179,2]
[401098841,1767927041449,-1000.0,0.000179,2]
[401098843,1767927041458,-10000.0,0.000179,2]
[401098845,1767927041468,-367.98545981,0.000179,2]
[401098888,1767927041868,-626.31310827,0.000179,2]
[401098890,1767927041877,-162.0,0.000179,3]
[401098892,1767927041887,-162.0,0.000179,3]
[401098894,1767927041896,-162.0,0.000179,3]
[401098896,1767927041905,-162.0,0.000179,4]
[401098898,1767927041915,-162.0,0.000179,4]
[401098900,1767927041925,-162.0,0.000179,4]
[401098902,1767927041935,-165.2445396,0.000179,2]
[401098905,1767927041944,-1722.70176245,0.000179,2]
[401098907,1767927041954,-2806.06348518,0.000179,2]
[401098908,1767927041963,-500.0,0.000179,2]
[401098910,1767927041973,-500.0,0.000179,2]
[401098912,1767927041982,-500.0,0.000179,2]
[401098915,1767927041992,-500.0,0.000179,2]
[401098917,1767927042001,-500.0,0.000179,2]
[401098919,1767927042011,-500.0,0.000179,2]
[401098921,1767927042021,-500.0,0.000179,2]
[401098923,1767927042030,-500.0,0.000179,2]
[401098925,1767927042039,-500.0,0.000179,2]
[401098927,1767927042049,-500.0,0.000179,2]
[401098929,1767927042059,-500.0,0.000179,2]
[401098931,1767927042069,-500.0,0.000179,2]
[401098933,1767927042078,-500.0,0.000179,2]
[401098935,1767927042087,-500.0,0.000179,2]
[401098937,1767927042097,-500.0,0.000179,2]
[401098939,1767927042107,-500.0,0.000179,2]
[401098941,1767927042116,-500.0,0.000179,2]
[401098943,1767927042126,-500.0,0.000179,2]
[401098945,1767927042136,-500.0,0.000179,2]
[401098947,1767927042147,-500.0,0.000179,2]
[401098949,1767927042156,-11354.0,0.000179,2]
[401098951,1767927042166,-264.0,0.00017908,2]
[401098953,1767927042175,-5800.0,0.0001794,2]
[401098955,1767927042185,-5800.0,0.00017948,2]
[401098957,1767927042193,-152.0,0.00017956,3]
[401098959,1767927042203,-5800.0,0.00017957,2]
[401098961,1767927042212,-5800.0,0.00017965,2]
[401098963,1767927042222,-500.0,0.00017973,2]
[401098965,1767927042231,-500.0,0.00017973,2]
[401098967,1767927042240,-500.0,0.00017973,2]
[401098969,1767927042250,-500.0,0.00017973,2]
[401098970,1767927042260,-625.00819918,0.00017973,2]
[401098972,1767927042269,-372.6640454,0.00017973,2]
[401098974,1767927042278,-179.20096908,0.00017973,2]
[401098976,1767927042288,-501.26195682,0.00017973,2]
[401098978,1767927042298,-500.0,0.00017973,2]
[401098980,1767927042307,-500.0,0.00017973,2]
[401098982,1767927042317,-283.43561146,0.00017973,2]
[401098984,1767927042326,-500.0,0.00017973,2]
[401098986,1767927042335,-500.0,0.00017973,2]
[401098988,1767927042346,-500.36206432,0.00017973,2]
[401098990,1767927042355,-500.0,0.00017973,2]
[401098992,1767927042364,-500.0,0.00017973,2]
[401098994,1767927042374,-500.0,0.00017973,2]
[401098996,1767927042383,-500.0,0.00017973,2]
[401098998,1767927042393,-160.6645308,0.00017973,2]
[401099000,1767927042402,-507.65773125,0.00017973,2]
[401099002,1767927042412,-500.0,0.00017973,2]
[401099004,1767927042421,-500.0,0.00017973,2]
[401099006,1767927042430,-500.0,0.00017973,2]
[401099008,1767927042439,-165.3256661,0.00017973,2]
[401099011,1767927042452,-500.51815801,0.00017973,2]
[401099013,1767927042462,-308.1909641,0.00017973,2]
[401099015,1767927042471,-166.05644704,0.00017973,2]
[401099017,1767927042480,-500.24048348,0.00017973,2]
[401099019,1767927042490,-500.0,0.00017973,2]
[401099021,1767927042499,-500.0,0.00017973,2]
[401099023,1767927042509,-169.10832564,0.00017973,2]
[401099025,1767927042521,-500.0,0.00017973,2]
[401099027,1767927042531,-375.44031674,0.00017973,2]
[401099029,1767927042540,-500.78697171,0.00017973,2]
[401099031,1767927042550,-506.42241375,0.00017973,2]
[401099033,1767927042559,-500.0,0.00017973,2]
[401099035,1767927042568,-150.0,0.00017973,2]
[401099037,1767927042578,-5800.0,0.00017973,2]
[401099039,1767927042588,-5800.0,0.00017982,2]
[401099041,1767927042598,-219.52249285,0.00017982,2]
[401099043,1767927042608,-500.0,0.00017982,2]
[401099045,1767927042618,-1000.0,0.00017983,2]
[401099047,1767927042627,-206.86777706,0.0001799,2]
[401099049,1767927042636,-5800.0,0.0001799,2]
[401099051,1767927042646,-276.01426264,0.00017999,2]
[401099053,1767927042655,-222.98699471,0.00017999,2]
[401099055,1767927042665,-500.0,0.00017999,2]
[401099057,1767927042675,-500.0,0.00017999,2]
[401099059,1767927042684,-500.0,0.00017999,2]
[401099061,1767927042693,-500.0,0.00017999,2]
[401099063,1767927042703,-500.0,0.00017999,2]
[401099065,1767927042712,-500.0,0.00017999,2]
[401099067,1767927042721,-500.0,0.00017999,2]
[401099069,1767927042731,-500.0,0.00017999,2]
[401099071,1767927042740,-370.00714586,0.00017999,2]
[401099073,1767927042750,-300.0,0.00017999,2]
[401099075,1767927042759,-300.0,0.00017999,2]
[401099078,1767927042769,-666.0,0.00017999,2]
[401099080,1767927042779,-300.0,0.00017999,2]
[401099081,1767927042789,-300.0,0.00017999,2]
[401099084,1767927042799,-666.0,0.00017999,2]
[401099086,1767927042808,-5800.0,0.00017999,2]
[401099088,1767927042817,-300.0,0.00017999,2]
[401099090,1767927042827,-666.0,0.00017999,2]
[401099092,1767927042840,-150.0,0.00017999,2]
[401099094,1767927042851,-150.0,0.00017999,2]
[401099096,1767927042861,-300.0,0.00017999,2]
[401099098,1767927042870,-542.95517596,0.00017999,2]
[401099100,1767927042879,-300.0,0.00017999,2]
[401099102,1767927042889,-183.8943423,0.00017999,2]
[401099104,1767927042899,-794614.25150187,0.00018,2]
[401099406,1767927045822,-151.0,0.00015752,2]
[401099408,1767927045832,-151.0,0.00015752,2]
[401099410,1767927045842,-482.72,0.00016772,2]
[401099412,1767927045852,-513.31999989,0.00017032,2]
[401099421,1767927045928,-974.32465048,0.00017032,2]
[401099444,1767927046139,-329.25823511,0.00017032,2]
[401099445,1767927046149,-6580.50190124,0.00018,2]
[401099597,1767927707791,36428.0,0.000226,120]
[401099635,1767928231986,-253.56,0.00014155,2]
[401099636,1767928231998,-47.95949948,0.00014218,2]
[401099637,1767928232283,-1407.00725734,0.00014218,2]
[401099638,1767928232294,-884.55646391,0.00014218,2]
[401099640,1767928232306,-160.47677927,0.00014218,2]
[401099643,1767928232316,-187.62,0.00014282,2]
[401099645,1767928232325,-639.35119563,0.0001453,2]
[401099647,1767928232336,-1860.64880437,0.0001453,2]
[401099649,1767928232346,-215.78112868,0.0001466,2]
[401099651,1767928232355,-500.0,0.0001466,2]
[401099653,1767928232366,-210.60544519,0.0001466,2]
[401099655,1767928232375,-336.94221396,0.0001466,2]
[401099657,1767928232385,-500.0,0.0001466,2]
[401099659,1767928232394,-16647.41853178,0.00014661,2]
[401099661,1767928232405,-1427.00894998,0.00014661,2]
[401099664,1767928232416,-1073.20076212,0.00014661,2]
[401099666,1767928232427,-5784.96598384,0.00014661,2]
[401099669,1767928233227,-317.05615839,0.0001466,2]
[401099670,1767928233237,-365.09885057,0.00014661,2]
[401099671,1767928233248,-653.82212702,0.00014661,2]
[401099672,1767928233259,-7282.46985046,0.00014661,2]
[401099673,1767928233270,-736.07642552,0.00014661,2]
[401099674,1767928233371,-3076.876,0.00014661,2]
[401099675,1767928233382,-347.43508066,0.00014661,2]
[401099676,1767928233393,-445.96440231,0.00014661,2]
[401099677,1767928233404,-3033.40725318,0.00014661,2]
[401099678,1767928233507,-1009.24355313,0.00014661,2]
[401099679,1767928233518,-270.69232887,0.00014661,2]
[401099680,1767928233530,-881.06593574,0.00014661,2]
[401099681,1767928233647,-7137.41899319,0.00014661,2]
[401099682,1767928233658,-3055.13271573,0.00014661,2]
[401099687,1767928238167,-168.17977168,0.00014623,2]
[401099688,1767928238176,-166.47817278,0.0001466,2]
[401099689,1767928238186,-407.73944213,0.0001466,2]
[401099690,1767928238250,-92.26055787,0.0001466,2]
[401099691,1767928238260,-500.0,0.0001466,2]
[401099692,1767928238269,-500.0,0.0001466,2]
[401099693,1767928238279,-500.0,0.0001466,2]
[401099694,1767928238288,-500.0,0.0001466,2]
[401099695,1767928238298,-500.0,0.0001466,2]
[401099696,1767928238307,-391.96506723,0.00014661,2]
[401099697,1767928238319,-45250.22656074,0.00014661,2]
[401099698,1767928238330,-2524.94000031,0.00014661,2]
[401099699,1767928238341,-36959.68183916,0.00014661,2]
[401099707,1767928238485,-500.0,0.0001466,2]
[401099709,1767928238494,-384.56417984,0.0001466,2]
[401099711,1767928238505,-115.43582016,0.0001466,2]
[401099713,1767928238514,-500.0,0.0001466,2]
[401099715,1767928238523,-2014.54179155,0.00014661,2]
[401099717,1767928238534,-7243.67967299,0.00014661,2]
[401099883,1767928240316,-167.21287664,0.0001466,2]
[401099885,1767928240325,-500.0,0.0001466,2]
[401099887,1767928240334,-500.0,0.0001466,2]
[401099889,1767928240343,-500.0,0.0001466,2]
[401099891,1767928240353,-500.0,0.0001466,2]
[401099893,1767928240362,-852387.66732392,0.00014661,2]
[401099895,1767928240372,-1200.0,0.00014723,2]
[401099897,1767928240381,-5948.43148559,0.00014724,2]
[401099899,1767928240390,-280.5522631,0.00014724,2]
[401099901,1767928240400,-300.0,0.00014762,2]
[401099903,1767928240410,-150.0,0.00014762,2]
[401099905,1767928240419,-500.0,0.00014763,2]
[401099907,1767928240429,-500.0,0.00014763,2]
[401099909,1767928240438,-500.0,0.00014763,2]
[401099911,1767928240449,-504.05178129,0.00014763,2]
[401099913,1767928240458,-500.0,0.00014763,2]
[401099915,1767928240467,-500.0,0.00014763,2]
[401099918,1767928240476,-500.0,0.00014763,2]
[401099919,1767928240485,-500.0,0.00014763,2]
[401099921,1767928240494,-500.0,0.00014763,2]
[401099923,1767928240503,-503.2370208,0.00014763,2]
[401099925,1767928240512,-504.30057619,0.00014763,2]
[401099927,1767928240521,-500.0,0.00014763,2]
[401099929,1767928240530,-500.0,0.00014763,2]
[401099931,1767928240540,-151.0,0.00014772,2]
[401099933,1767928240549,-151.0,0.00014772,2]
[401099935,1767928240558,-151.0,0.00014772,2]
[401099937,1767928240567,-151.0,0.00014772,2]
[401099939,1767928240577,-151.0,0.00014772,2]
[401099941,1767928240587,-151.0,0.00014772,2]
[401099943,1767928240596,-151.0,0.00014772,2]
[401099945,1767928240606,-151.0,0.00014772,2]
[401099947,1767928240615,-151.0,0.00014772,2]
[401099950,1767928240625,-151.0,0.00014772,2]
[401099951,1767928240634,-151.0,0.00014772,2]
[401099954,1767928240644,-151.0,0.00014772,2]
[401099955,1767928240653,-207.4,0.00014772,2]
[401099957,1767928240664,-999.0,0.00014779,3]
[401099959,1767928240674,-819.324,0.0001478,2]
[401099961,1767928240684,-508.33302413,0.0001478,2]
[401099963,1767928240694,-500.0,0.0001478,2]
[401099965,1767928240703,-500.0,0.0001478,2]
[401099967,1767928240713,-500.0,0.0001478,2]
[401099969,1767928240722,-500.0,0.0001478,2]
[401099971,1767928240732,-500.0,0.0001478,2]
[401099973,1767928240741,-500.0,0.0001478,2]
[401099975,1767928240750,-500.0,0.0001478,2]
[401099977,1767928240760,-500.0,0.0001478,2]
[401099979,1767928240769,-200.0,0.00014824,2]
[401099981,1767928240787,-1852.42,0.00014855,2]
[401099983,1767928240796,-166.66,0.00014895,2]
[401099985,1767928240805,-5948.43148552,0.00015077,2]
[401099987,1767928240814,-500.0,0.0001531,2]
[401099989,1767928240823,-166.86277605,0.0001531,2]
[401099991,1767928240835,-500.0,0.0001531,2]
[401099993,1767928240844,-1000.0,0.0001531,2]
[401099995,1767928240853,-437.643867,0.0001531,2]
[401099997,1767928240863,-500.93632918,0.0001531,2]
[401099999,1767928240875,-1000.0,0.0001531,2]
[401100001,1767928240884,-1003.57869297,0.0001531,2]
[401100003,1767928240893,-599.35467002,0.0001531,2]
[401100005,1767928240902,-1000.0,0.0001531,2]
[401100007,1767928240911,-166.66,0.00015386,2]
[401100009,1767928240921,-5948.43148552,0.0001543,2]
[401100011,1767928240930,-151.0,0.00015528,2]
[401100013,1767928240940,-151.0,0.00015528,2]
[401100015,1767928240949,-2500.0,0.0001557,2]
[401100017,1767928240958,-168.6,0.000157,2]
[401100019,1767928240968,-450.43,0.00015764,2]
[401100021,1767928240977,-5948.43148552,0.00015783,2]
[401100023,1767928240986,-280.55226309,0.00015812,2]
[401100025,1767928240996,-409.48,0.00015823,2]
[401100027,1767928241009,-1171.84564293,0.00015858,2]
[401100029,1767928241018,-1500.0,0.00015858,2]
[401100031,1767928241027,-705.56277415,0.00015858,2]
[401100033,1767928241037,-166.66,0.00015878,2]
[401100035,1767928241046,-255.0,0.00015883,2]
[401100037,1767928241055,-150.0,0.00016029,2]
[401100039,1767928241064,-150.0,0.00016084,2]
[401100041,1767928241073,-5948.43148552,0.00016136,2]
[401100043,1767928241082,-150.0,0.00016139,2]
[401100045,1767928241091,-150.0,0.00016193,2]
[401100047,1767928241102,-1680.0,0.00016195,2]
[401100049,1767928241110,-150.0,0.00016248,2]
[401100051,1767928241120,-934.9,0.00016273,2]
[401100053,1767928241129,-250.0,0.00016303,2]
[401100055,1767928241137,-500.0,0.00016338,2]
[401100057,1767928241146,-500.0,0.00016338,2]
[401100059,1767928241155,-500.0,0.00016338,2]
[401100061,1767928241164,-602.31786917,0.00016338,2]
[401100063,1767928241173,-500.0,0.00016338,2]
[401100065,1767928241182,-511.98797605,0.00016338,2]
[401100067,1767928241191,-166.66,0.0001637,2]
[401100069,1767928241200,-476.09266988,0.00016406,2]
[401100071,1767928241209,-322.92952326,0.00016438,2]
[401100073,1767928241218,-422.58,0.00016438,2]
[401100075,1767928241227,-422.58,0.00016438,2]
[401100077,1767928241237,-422.58,0.00016438,2]
[401100079,1767928241246,-422.58,0.00016438,2]
[401100081,1767928241256,-422.58,0.00016438,2]
[401100083,1767928241265,-422.58,0.00016438,2]
[401100085,1767928241274,-422.58,0.00016438,2]
[401100087,1767928241282,-422.58,0.00016438,2]
[401100089,1767928241291,-422.58,0.00016438,2]
[401100091,1767928241301,-422.58,0.00016438,2]
[401100093,1767928241310,-422.58,0.00016438,2]
[401100095,1767928241319,-422.58,0.00016438,2]
[401100097,1767928241329,-422.58,0.00016438,2]
[401100099,1767928241339,-422.58,0.00016438,2]
[401100101,1767928241348,-422.58,0.00016438,2]
[401100103,1767928241357,-422.58,0.00016438,2]
[401100105,1767928241366,-422.58,0.00016438,2]
[401100107,1767928241375,-422.58,0.00016438,2]
[401100110,1767928241384,-422.58,0.00016438,2]
[401100111,1767928241394,-422.58,0.00016438,2]
[401100114,1767928241404,-422.58,0.00016438,2]
[401100115,1767928241414,-422.58,0.00016438,2]
[401100117,1767928241423,-422.58,0.00016438,2]
[401100120,1767928241432,-422.74119631,0.00016438,2]
[401100122,1767928241441,-525.11,0.00016438,2]
[401100124,1767928241450,-500.0,0.00016438,2]
[401100125,1767928241460,-500.0,0.00016438,2]
[401100127,1767928241469,-500.0,0.00016438,2]
[401100129,1767928241478,-500.0,0.00016438,2]
[401100131,1767928241487,-500.0,0.00016438,2]
[401100133,1767928241496,-500.0,0.00016438,2]
[401100136,1767928241507,-500.0,0.00016438,2]
[401100138,1767928241516,-500.0,0.00016438,2]
[401100140,1767928241525,-500.0,0.00016438,2]
[401100141,1767928241534,-500.0,0.00016438,2]
[401100143,1767928241543,-500.0,0.00016438,2]
[401100145,1767928241552,-500.0,0.00016438,2]
[401100147,1767928241561,-500.0,0.00016438,2]
[401100150,1767928241571,-500.0,0.00016438,2]
[401100152,1767928241580,-500.0,0.00016438,2]
[401100154,1767928241590,-500.0,0.00016438,2]
[401100156,1767928241599,-500.0,0.00016438,2]
[401100157,1767928241608,-639.35934116,0.00016438,2]
[401100159,1767928241617,-791.3,0.00016438,2]
[401100161,1767928241627,-300.0,0.00016438,2]
[401100163,1767928241636,-300.0,0.00016438,2]
[401100166,1767928241645,-300.0,0.00016438,2]
[401100167,1767928241654,-300.0,0.00016438,2]
[401100170,1767928241666,-300.0,0.00016438,2]
[401100172,1767928241675,-300.0,0.00016438,2]
[401100173,1767928241684,-300.0,0.00016438,2]
[401100175,1767928241693,-300.0,0.00016438,2]
[401100177,1767928241702,-300.0,0.00016438,2]
[401100179,1767928241711,-300.0,0.00016438,2]
[401100181,1767928241720,-300.0,0.00016438,2]
[401100183,1767928241729,-300.0,0.00016438,2]
[401100185,1767928241738,-300.0,0.00016438,2]
[401100187,1767928241747,-371.96837686,0.00016438,2]
[401100189,1767928241756,-500.0,0.00016438,2]
[401100191,1767928241765,-500.0,0.00016438,2]
[401100193,1767928241774,-500.0,0.00016438,2]
[401100195,1767928241783,-578.12979555,0.00016438,2]
[401100197,1767928241792,-500.0,0.00016438,2]
[401100199,1767928241801,-500.0,0.00016438,2]
[401100201,1767928241811,-500.0,0.00016438,2]
[401100203,1767928241819,-500.0,0.00016438,2]
[401100205,1767928241828,-500.0,0.00016438,2]
[401100207,1767928241837,-500.0,0.00016438,2]
[401100209,1767928241846,-802.78621934,0.00016438,2]
[401100211,1767928241855,-5948.43148552,0.00016488,2]
[401100213,1767928241864,-50422.27,0.00016649,2]
[401100215,1767928241874,-859.99,0.00016649,2]
[401100217,1767928241883,-409.48,0.00016702,2]
[401100219,1767928241892,-525.11,0.00016712,2]
[401100221,1767928241901,-791.3,0.00016712,2]
[401100223,1767928241910,-5948.43148552,0.00016841,2]
[401100225,1767928241919,-166.66,0.00016861,2]
[401100227,1767928241927,-162.0,0.000169,2]
[401100229,1767928241936,-280.55226309,0.000169,2]
[401100231,1767928241947,-157.78803463,0.00016901,2]
[401100233,1767928241956,-206.86777706,0.00016912,2]
[401100235,1767928241965,-8871.42,0.00016922,2]
[401100237,1767928241974,-535.58,0.00016922,2]
[401100239,1767928241983,-299.99,0.00016922,4]
[401100241,1767928241991,-9999.99,0.00016922,2]
[401100243,1767928242004,-7136.69,0.00016922,2]
[401100245,1767928242012,-150.99,0.00016922,2]
[401100247,1767928242021,-525.11,0.00016986,2]
[401100249,1767928242030,-791.3,0.00016986,2]
[401100251,1767928242041,-150.0,0.00016986,2]
[401100253,1767928242051,-721169.03,0.00016986,2]
[401100255,1767928242059,-250.0,0.00017,2]
[401100257,1767928242069,-419.81,0.00017,2]
[401100259,1767928242078,-482.82,0.00017041,2]
[401100261,1767928242087,-482.82,0.00017041,2]
[401100263,1767928242095,-482.82,0.00017041,2]
[401100265,1767928242104,-433.0,0.00017094,2]
[401100267,1767928242113,-1247.59056919,0.00017099,2]
[401100269,1767928242123,-1020.08839075,0.00017099,2]
[401100271,1767928242131,-738.86836841,0.00017099,2]
[401100273,1767928242140,-322.6107,0.00017099,2]
[401100275,1767928242150,-500.0,0.00017099,2]
[401100277,1767928242159,-500.0,0.00017099,2]
[401100279,1767928242168,-1500.0,0.00017099,2]
[401100281,1767928242177,-500.0,0.00017099,2]
[401100283,1767928242186,-500.0,0.00017099,2]
[401100285,1767928242195,-1500.0,0.00017099,2]
[401100287,1767928242204,-500.0,0.00017099,2]
[401100289,1767928242214,-817.14196005,0.00017099,2]
[401100291,1767928242223,-1500.0,0.00017099,2]
[401100293,1767928242233,-264.02807282,0.00017099,2]
[401100295,1767928242242,-1500.0,0.00017099,2]
[401100297,1767928242251,-1500.0,0.00017099,2]
[401100299,1767928242261,-1500.0,0.00017099,2]
[401100301,1767928242270,-1500.0,0.00017099,2]
[401100303,1767928242279,-621.78361711,0.00017099,2]
[401100305,1767928242288,-578.20924308,0.00017099,2]
[401100307,1767928242297,-620.0,0.00017099,2]
[401100309,1767928242307,-334.5472959,0.00017099,2]
[401100311,1767928242315,-553.64373807,0.00017099,2]
[401100313,1767928242324,-500.0,0.00017099,2]
[401100315,1767928242333,-500.0,0.00017099,2]
[401100317,1767928242343,-500.0,0.00017099,2]
[401100319,1767928242352,-500.0,0.00017099,2]